[Event "Satka Autumn 2019"]
[Site "Satka"]
[Date "2019.09.23"]
[Round "5.5"]
[White "Nosacheva, Mariya"]
[Black "Petrukhina, Olga"]
[Result "1-0"]
[ECO "B12"]
[WhiteElo "2193"]
[BlackElo "2192"]
[Annotator "NA"]
[PlyCount "123"]
[EventDate "2019.09.19"]
[EventType "swiss"]
[EventCountry "RUS"]
[SourceTitle "playchess.com"]
[Source "ChessBase"]
[SourceQuality "1"]
[TimeControl "5400+30"]

1. e4 {[%emt 0:00:00]} c6 {[%emt 0:00:00]} 2. d4 {[%emt 0:00:00]} d5 {[%emt 0:00:00]} 3. e5 {[%emt 0:00:00]} Bf5 {[%emt 0:00:00]} 4. h4 {[%emt 0:00:08]} h6 {[%emt 0:00:00]} 5. g4 {[%emt 0:04:37]} Bd7 {[%emt 0:00:06]} 6. h5 {[%emt 0:00:36]} c5 {[%emt 0:05:16]} 7. c3 {[%emt 0:00:14]} Nc6 {[%emt 0:01:48]} 8. Na3 {[%emt 0:05:01]} cxd4 {[%emt 0:04:29]} 9. cxd4 {[%emt 0:00:45]} Qb6 {[%emt 0:00:07]} 10. Nc2 {[%emt 0:00:41]} Rc8 {[%emt 0:09:20]} 11. Be2 {[%emt 0:01:25]} Nb4 {[%emt 0:10:22]} 12. Ne3 {[%emt 0:00:25]} e6 {[%emt 0:01:19]} 13. f4 {[%emt 0:05:23]} Bb5 {[%emt 0:07:30]} 14. a3 {[%emt 0:11:48]} Nc6 {[%emt 0:08:39]} 15. Nf3 {[%emt 0:00:07]} Bxe2 {[%emt 0:01:48]} 16. Kxe2 {[%emt 0:00:06]} Nge7 {[%emt 0:10:36]} 17. f5 {[%emt 0:10:46]} Qb5+ {[%emt 0:12:03]} 18. Kf2 {[%emt 0:00:28]} Na5 {[%emt 0:00:45]} 19. b4 {[%emt 0:19:53]} Nc4 {[%emt 0:00:41]} 20. Qd3 {[%emt 0:00:08]} Qd7 {[%emt 0:12:17]} 21. fxe6 {[%emt 0:04:03]} fxe6 {[%emt 0:03:13]} 22. Ng2 {[%emt 0:00:32]} Kd8 {[%emt 0:02:11]} 23. Nf4 {[%emt 0:07:58]} Kc7 {[%emt 0:00:15]} 24. Kg3 {[%emt 0:01:23]} Kb8 {[%emt 0:00:06]} 25. Ra2 {[%emt 0:00:22]} Nc6 {[%emt 0:03:04]} 26. Rf2 {[%emt 0:02:06]} Be7 {[%emt 0:01:55]} 27. Qg6 {[%emt 0:03:24]} Nd8 {[%emt 0:02:28]} 28. Kg2 {[%emt 0:03:52]} Rg8 {[%emt 0:01:36]} 29. Rhf1 {[%emt 0:00:15]} Nb6 {[%emt 0:01:35]} 30. Qh7 {[%emt 0:03:10]} Qe8 {[%emt 0:00:32]} 31. Ng6 {[%emt 0:03:51]} Nc6 {[%emt 0:00:36]} 32. Rc2 {[%emt 0:10:46]} Nc4 {[%emt 0:00:12]} 33. Nf4 {[%emt 0:01:39]} Bg5 {[%emt 0:00:10]} 34. Nxg5 {[%emt 0:00:16]} hxg5 {[%emt 0:00:01]} 35. Ne2 {[%emt 0:00:12]} Qe7 {[%emt 0:01:46]} 36. Qg6 {[%emt 0:00:06]} Rcf8 {[%emt 0:00:33]} 37. Bxg5 {[%emt 0:00:31]} Qd7 {[%emt 0:00:35]} 38. Ra1 {[%emt 0:01:00]} Rh8 {[%emt 0:00:21]} 39. b5 {[%emt 0:00:24]} N6a5 {[%emt 0:00:13]} 40. a4 {[%emt 0:00:00]} Rf7 {[%emt 0:00:00]} 41. Rf1 {[%emt 0:00:00]} Rxf1 {[%emt 0:00:00]} 42. Kxf1 {[%emt 0:00:00]} Rf8+ {[%emt 0:00:00]} 43. Kg2 {[%emt 0:00:00]} Nb6 {[%emt 0:00:00]} 44. Nf4 {[%emt 0:00:00]} Re8 {[%emt 0:00:00]} 45. Qd3 {[%emt 0:00:00]} Nac4 {[%emt 0:00:00]} 46. Ra2 {[%emt 0:00:00]} Nxa4 47. Rxa4 {[%emt 0:00:00]} Nb2 {[%emt 0:01:48]} 48. Qb3 {[%emt 0:00:00]} Nxa4 {[%emt 0:00:02]} 49. Qxa4 {[%emt 0:00:00]} a6 {[%emt 0:02:03]} 50. Nd3 {[%emt 0:00:00]} axb5 {[%emt 0:01:19]} 51. Qb4 {[%emt 0:00:00]} b6 {[%emt 0:00:31]} 52. Qd6+ {[%emt 0:00:00]} Qc7 {[%emt 0:00:07]} 53. Kf3 {[%emt 0:00:00]} Kb7 {[%emt 0:00:13]} 54. Qxc7+ {[%emt 0:00:00]} Kxc7 {[%emt 0:00:01]} 55. Bf6 {[%emt 0:01:22]} Rf8 {[%emt 0:02:06]} 56. Nf4 {[%emt 0:00:04]} Rf7 {[%emt 0:00:42]} 57. Nxe6+ {[%emt 0:00:26]} Kd7 {[%emt 0:00:01]} 58. Nxg7 {[%emt 0:00:22]} Rf8 {[%emt 0:00:43]} 59. Ke2 {[%emt 0:00:29]} b4 {[%emt 0:00:05]} 60. Kd2 {[%emt 0:00:51]} Rc8 {[%emt 0:00:25]} 61. e6+ {[%emt 0:00:07]} Kd6 {[%emt 0:00:07]} 62. e7 {[%emt 0:00:05]} 1-0

[Event "Satka Autumn 2019"]
[Site "Satka"]
[Date "2019.09.23"]
[Round "5.6"]
[White "Borisova, Ekaterina"]
[Black "Svetlova, Ksenia"]
[Result "1-0"]
[ECO "A04"]
[WhiteElo "2307"]
[BlackElo "1875"]
[Annotator "NA"]
[PlyCount "47"]
[EventDate "2019.09.19"]
[EventType "swiss"]
[EventCountry "RUS"]
[SourceTitle "playchess.com"]
[Source "ChessBase"]
[SourceQuality "1"]
[TimeControl "5400+30"]

1. Nf3 {[%emt 0:00:00]} c5 {[%emt 0:00:00]} 2. c4 {[%emt 0:00:00]} Nf6 {[%emt 0:00:00]} 3. g3 {[%emt 0:00:11]} d5 {[%emt 0:00:00]} 4. d4 {[%emt 0:00:24]} cxd4 {[%emt 0:01:05]} 5. Nxd4 {[%emt 0:00:46]} Nc6 {[%emt 0:01:50]} 6. Bg2 {[%emt 0:01:11]} Qb6 {[%emt 0:02:49]} 7. Nxc6 {[%emt 0:06:37]} bxc6 {[%emt 0:00:07]} 8. Nc3 {[%emt 0:00:07]} e6 {[%emt 0:01:55]} 9. O-O {[%emt 0:00:19]} Ba6 {[%emt 0:04:08]} 10. cxd5 {[%emt 0:05:04]} exd5 {[%emt 0:06:51]} 11. Be3 {[%emt 0:04:29]} Qa5 {[%emt 0:16:42]} 12. a3 {[%emt 0:02:54]} Bc4 {[%emt 0:02:38]} 13. Bd4 {[%emt 0:02:26]} Be7 {[%emt 0:00:07]} 14. b3 {[%emt 0:00:40]} Ba6 {[%emt 0:02:57]} 15. b4 {[%emt 0:00:28]} Qd8 {[%emt 0:00:20]} 16. Qa4 {[%emt 0:06:39]} Bb7 {[%emt 0:00:24]} 17. e4 {[%emt 0:14:19]} O-O {[%emt 0:01:34]} 18. Rfd1 {[%emt 0:02:16]} Qc8 {[%emt 0:05:06]} 19. Rac1 {[%emt 0:01:25]} Qg4 {[%emt 0:01:47]} 20. h3 {[%emt 0:00:56]} Qg6 {[%emt 0:02:48]} 21. exd5 {[%emt 0:05:08]} Nxd5 {[%emt 0:00:57]} 22. Nxd5 {[%emt 0:00:58]} cxd5 {[%emt 0:00:08]} 23. Qd7 {[%emt 0:00:05]} Bg5 {[%emt 0:00:31]} 24. f4 {[%emt 0:06:48]} 1-0

[Event "Satka Autumn 2019"]
[Site "Satka"]
[Date "2019.09.23"]
[Round "5.8"]
[White "Trapeznikova, Darya"]
[Black "Lysenko, Margarita"]
[Result "0-1"]
[ECO "A06"]
[WhiteElo "2085"]
[BlackElo "2249"]
[Annotator "NA"]
[PlyCount "84"]
[EventDate "2019.09.19"]
[EventType "swiss"]
[EventCountry "RUS"]
[SourceTitle "playchess.com"]
[Source "ChessBase"]
[SourceQuality "1"]
[TimeControl "5400+30"]

1. Nf3 {[%emt 0:00:00]} Nf6 {[%emt 0:00:00]} 2. c4 {[%emt 0:00:00]} e6 {[%emt 0:00:00]} 3. e3 {[%emt 0:00:06]} d5 {[%emt 0:00:09]} 4. b3 {[%emt 0:00:16]} c5 {[%emt 0:00:17]} 5. Bb2 {[%emt 0:00:12]} Nc6 {[%emt 0:00:28]} 6. cxd5 {[%emt 0:01:50]} exd5 {[%emt 0:02:16]} 7. Nc3 {[%emt 0:01:02]} Bd6 {[%emt 0:26:01]} 8. d4 {[%emt 0:01:12]} cxd4 {[%emt 0:00:37]} 9. Nxd4 {[%emt 0:00:07]} O-O {[%emt 0:01:04]} 10. Be2 {[%emt 0:00:46]} Re8 {[%emt 0:08:44]} 11. O-O {[%emt 0:01:48]} Nxd4 {[%emt 0:04:01]} 12. Qxd4 {[%emt 0:00:37]} Be5 {[%emt 0:00:18]} 13. Qd3 {[%emt 0:04:37]} Ne4 {[%emt 0:09:21]} 14. Na4 {[%emt 0:21:05]} Bxb2 {[%emt 0:10:17]} 15. Nxb2 {[%emt 0:00:15]} Qf6 {[%emt 0:01:11]} 16. Na4 {[%emt 0:06:19]} Bd7 {[%emt 0:08:11]} 17. Rac1 {[%emt 0:05:25]} Rad8 {[%emt 0:04:24]} 18. Bf3 {[%emt 0:02:27]} Bc6 {[%emt 0:01:26]} 19. Rfd1 {[%emt 0:09:16]} Ng5 {[%emt 0:01:35]} 20. Be2 {[%emt 0:01:47]} d4 {[%emt 0:02:39]} 21. exd4 {[%emt 0:08:42]} Ne6 {[%emt 0:02:28]} 22. Bf1 {[%emt 0:10:42]} Nf4 {[%emt 0:02:53]} 23. Qg3 {[%emt 0:13:07]} Bxg2 {[%emt 0:00:40]} 24. Rc2 {[%emt 0:00:29]} Bxf1 {[%emt 0:07:46]} 25. Kxf1 {[%emt 0:01:05]} Rxd4 {[%emt 0:00:44]} 26. Rxd4 {[%emt 0:05:09]} Qxd4 {[%emt 0:00:09]} 27. Nc3 {[%emt 0:00:13]} g6 {[%emt 0:02:32]} 28. h4 {[%emt 0:01:31]} Qe5 {[%emt 0:01:44]} 29. Kg1 {[%emt 0:02:40]} Qf5 {[%emt 0:01:39]} 30. Rc1 {[%emt 0:00:56]} Nh5 {[%emt 0:00:08]} 31. Qg2 {[%emt 0:01:01]} Qf4 {[%emt 0:00:26]} 32. Rd1 {[%emt 0:00:22]} Qxh4 {[%emt 0:00:20]} 33. Qxb7 {[%emt 0:00:32]} Nf4 {[%emt 0:01:05]} 34. Qc6 {[%emt 0:00:38]} Re5 {[%emt 0:00:51]} 35. Qf3 {[%emt 0:00:42]} Rf5 {[%emt 0:00:26]} 36. Kf1 {[%emt 0:00:33]} Nh3 {[%emt 0:00:25]} 37. Qa8+ {[%emt 0:00:24]} Kg7 {[%emt 0:00:06]} 38. Ne4 {[%emt 0:00:31]} Rxf2+ {[%emt 0:00:19]} 39. Ke1 {[%emt 0:00:12]} Rxa2+ {[%emt 0:01:02]} 40. Kf1 {[%emt 0:00:00]} Qf4+ {[%emt 0:00:00]} 41. Ke1 {[%emt 0:00:00]} Qe3+ {[%emt 0:00:00]} 42. Kf1 {[%emt 0:00:00]} Qe2# {[%emt 0:00:00]} 0-1

[Event "Satka Autumn 2019"]
[Site "Satka"]
[Date "2019.09.23"]
[Round "5.9"]
[White "Prudnikova, Svetlana"]
[Black "Shamsutdinova, Karina"]
[Result "1-0"]
[ECO "A05"]
[WhiteElo "2234"]
[BlackElo "1747"]
[Annotator "NA"]
[PlyCount "79"]
[EventDate "2019.09.19"]
[EventType "swiss"]
[EventCountry "RUS"]
[SourceTitle "playchess.com"]
[Source "ChessBase"]
[SourceQuality "1"]
[TimeControl "5400+30"]

1. Nf3 {[%emt 0:00:00]} Nf6 {[%emt 0:00:00]} 2. c4 {[%emt 0:00:00]} b6 {[%emt 0:00:00]} 3. g3 {[%emt 0:00:00]} Bb7 {[%emt 0:00:00]} 4. Bg2 {[%emt 0:00:00]} e6 {[%emt 0:00:41]} 5. O-O {[%emt 0:00:11]} Be7 {[%emt 0:00:16]} 6. Nc3 {[%emt 0:00:11]} c5 {[%emt 0:00:40]} 7. Re1 {[%emt 0:00:14]} Ne4 {[%emt 0:03:14]} 8. Nxe4 {[%emt 0:01:11]} Bxe4 {[%emt 0:00:09]} 9. d3 {[%emt 0:00:04]} Bb7 {[%emt 0:00:29]} 10. e4 {[%emt 0:00:20]} d6 {[%emt 0:03:21]} 11. d4 {[%emt 0:01:19]} O-O {[%emt 0:03:43]} 12. d5 {[%emt 0:05:30]} e5 {[%emt 0:03:25]} 13. Be3 {[%emt 0:00:41]} Bc8 {[%emt 0:03:17]} 14. Nd2 {[%emt 0:02:44]} f5 {[%emt 0:12:04]} 15. f4 {[%emt 0:15:59]} Bf6 {[%emt 0:05:06]} 16. Qc2 {[%emt 0:16:49]} g6 {[%emt 0:09:43]} 17. fxe5 {[%emt 0:09:51]} dxe5 {[%emt 0:12:27]} 18. exf5 {[%emt 0:10:40]} Bxf5 {[%emt 0:00:29]} 19. Ne4 {[%emt 0:00:07]} Bg7 {[%emt 0:06:55]} 20. Qd2 {[%emt 0:00:48]} Bxe4 {[%emt 0:04:40]} 21. Bxe4 {[%emt 0:00:02]} Qd6 {[%emt 0:00:21]} 22. g4 {[%emt 0:10:25]} Nd7 {[%emt 0:10:29]} 23. g5 {[%emt 0:01:09]} Rad8 {[%emt 0:07:54]} 24. Rad1 {[%emt 0:05:19]} Rf7 {[%emt 0:02:15]} 25. Re2 {[%emt 0:00:23]} Nb8 {[%emt 0:02:29]} 26. Rg2 {[%emt 0:03:09]} Bf8 {[%emt 0:03:13]} 27. h4 {[%emt 0:02:14]} Rdd7 {[%emt 0:02:52]} 28. Kh1 {[%emt 0:00:48]} Rg7 {[%emt 0:01:39]} 29. Rdg1 {[%emt 0:00:22]} Na6 {[%emt 0:00:55]} 30. Rh2 {[%emt 0:00:43]} Be7 {[%emt 0:01:16]} 31. h5 {[%emt 0:01:08]} Bd8 {[%emt 0:00:12]} 32. a3 {[%emt 0:00:41]} Nc7 {[%emt 0:00:18]} 33. Qc2 {[%emt 0:00:53]} Ne8 {[%emt 0:01:01]} 34. hxg6 {[%emt 0:00:21]} hxg6 {[%emt 0:00:13]} 35. Rh6 {[%emt 0:00:09]} Kf7 {[%emt 0:01:09]} 36. Rf1+ {[%emt 0:03:12]} Kg8 {[%emt 0:00:02]} 37. Qh2 {[%emt 0:00:32]} Rh7 {[%emt 0:00:32]} 38. Bxg6 {[%emt 0:00:53]} Rxh6 {[%emt 0:00:27]} 39. Qxh6 {[%emt 0:00:25]} Nc7 {[%emt 0:00:59]} 40. Rf7 {[%emt 0:00:00]} 1-0

[Event "Satka Autumn 2019"]
[Site "Satka"]
[Date "2019.09.23"]
[Round "5.10"]
[White "Dubnikova, Anastasia"]
[Black "Loskutova, Viktoriya"]
[Result "1-0"]
[ECO "E54"]
[WhiteElo "2056"]
[BlackElo "2162"]
[Annotator "NA"]
[PlyCount "161"]
[EventDate "2019.09.19"]
[EventType "swiss"]
[EventCountry "RUS"]
[SourceTitle "playchess.com"]
[Source "ChessBase"]
[SourceQuality "1"]
[TimeControl "5400+30"]

1. d4 {[%emt 0:00:00]} Nf6 {[%emt 0:00:00]} 2. c4 {[%emt 0:00:00]} e6 {[%emt 0:00:01]} 3. Nc3 {[%emt 0:00:10]} Bb4 {[%emt 0:00:09]} 4. e3 {[%emt 0:00:21]} d5 {[%emt 0:00:26]} 5. Nf3 {[%emt 0:00:40]} O-O {[%emt 0:00:17]} 6. Bd3 {[%emt 0:00:10]} dxc4 {[%emt 0:00:21]} 7. Bxc4 {[%emt 0:00:06]} c5 {[%emt 0:00:07]} 8. O-O {[%emt 0:01:16]} Nc6 {[%emt 0:00:15]} 9. a3 {[%emt 0:03:20]} Ba5 {[%emt 0:00:24]} 10. Bd3 {[%emt 0:15:51]} h6 {[%emt 0:01:09]} 11. Rb1 {[%emt 0:05:44]} cxd4 {[%emt 0:03:50]} 12. exd4 {[%emt 0:01:05]} Bc7 {[%emt 0:00:12]} 13. Re1 {[%emt 0:00:26]} b6 {[%emt 0:15:44]} 14. Bc2 {[%emt 0:03:23]} Bb7 {[%emt 0:06:17]} 15. Qd3 {[%emt 0:02:27]} Ne7 {[%emt 0:02:35]} 16. Ne5 {[%emt 0:16:10]} Nf5 {[%emt 0:23:16]} 17. Be3 {[%emt 0:03:16]} Re8 {[%emt 0:09:16]} 18. Rbd1 {[%emt 0:04:31]} a6 {[%emt 0:04:33]} 19. Bf4 {[%emt 0:05:08]} Nh5 {[%emt 0:20:54]} 20. Bg3 {[%emt 0:02:25]} Nhxg3 {[%emt 0:03:11]} 21. hxg3 {[%emt 0:00:09]} g6 {[%emt 0:00:12]} 22. Qd2 {[%emt 0:06:53]} Kg7 {[%emt 0:01:22]} 23. g4 {[%emt 0:03:37]} Ne7 {[%emt 0:00:50]} 24. Re3 {[%emt 0:01:41]} Nd5 {[%emt 0:02:55]} 25. Nxd5 {[%emt 0:03:21]} Bxd5 {[%emt 0:00:19]} 26. Rh3 {[%emt 0:02:03]} Rh8 {[%emt 0:00:21]} 27. Bb3 {[%emt 0:05:52]} Bxb3 {[%emt 0:01:19]} 28. Rxb3 {[%emt 0:00:05]} Qd5 {[%emt 0:00:15]} 29. Rf3 {[%emt 0:01:09]} Bxe5 {[%emt 0:02:42]} 30. dxe5 {[%emt 0:00:06]} Qxe5 {[%emt 0:00:43]} 31. Qd7 {[%emt 0:00:14]} Rhf8 {[%emt 0:00:27]} 32. Qb7 {[%emt 0:00:49]} Qb8 {[%emt 0:00:13]} 33. Qe7 {[%emt 0:00:10]} Qe8 {[%emt 0:00:48]} 34. Qf6+ {[%emt 0:03:36]} Kh7 {[%emt 0:00:57]} 35. Rfd3 {[%emt 0:05:06]} Rc8 {[%emt 0:00:04]} 36. Rd6 {[%emt 0:01:18]} b5 {[%emt 0:01:00]} 37. Rxa6 {[%emt 0:00:22]} Rd8 {[%emt 0:00:29]} 38. Re1 {[%emt 0:01:38]} Qd7 {[%emt 0:00:27]} 39. Rb6 {[%emt 0:01:41]} Qd2 {[%emt 0:00:37]} 40. Rexe6 {[%emt 0:00:00]} Qc1+ {[%emt 0:00:00]} 41. Kh2 {[%emt 0:00:00]} Qc7+ {[%emt 0:00:00]} 42. Red6 {[%emt 0:00:00]} Rde8 {[%emt 0:00:00]} 43. Rbc6 {[%emt 0:00:00]} Qa7 {[%emt 0:00:00]} 44. Qf3 {[%emt 0:00:00]} Qe7 {[%emt 0:00:00]} 45. g3 {[%emt 0:00:00]} Rb8 {[%emt 0:00:00]} 46. Rb6 {[%emt 0:00:00]} Rxb6 {[%emt 0:00:00]} 47. Rxb6 {[%emt 0:00:00]} Qc5 {[%emt 0:00:00]} 48. Rb7 {[%emt 0:00:00]} Kg7 {[%emt 0:00:00]} 49. Kg2 {[%emt 0:00:00]} Qc4 {[%emt 0:00:00]} 50. b3 {[%emt 0:00:00]} Qc5 {[%emt 0:00:00]} 51. b4 {[%emt 0:00:00]} Qc4 {[%emt 0:00:00]} 52. Rd7 {[%emt 0:00:00]} Qe6 {[%emt 0:01:57]} 53. Rd5 {[%emt 0:01:44]} Qc6 {[%emt 0:01:28]} 54. Rc5 {[%emt 0:02:57]} Qa6 {[%emt 0:00:32]} 55. Qc3+ {[%emt 0:01:50]} Kg8 {[%emt 0:00:30]} 56. Qe3 {[%emt 0:01:09]} Kg7 {[%emt 0:01:07]} 57. Qe5+ {[%emt 0:00:51]} Kg8 {[%emt 0:00:13]} 58. Rxb5 {[%emt 0:00:48]} Qa8+ {[%emt 0:00:13]} 59. Qd5 {[%emt 0:00:07]} Qxa3 {[%emt 0:00:06]} 60. Rb7 {[%emt 0:00:06]} Qb2 {[%emt 0:01:12]} 61. b5 {[%emt 0:00:41]} Qf6 {[%emt 0:00:12]} 62. Rd7 {[%emt 0:00:45]} Rb8 {[%emt 0:01:32]} 63. Rd6 {[%emt 0:00:46]} Qg5 {[%emt 0:01:07]} 64. Qxg5 {[%emt 0:00:58]} hxg5 {[%emt 0:00:01]} 65. Rd5 {[%emt 0:00:21]} f6 {[%emt 0:00:06]} 66. Kf3 {[%emt 0:00:04]} Kf7 {[%emt 0:00:03]} 67. Rc5 {[%emt 0:00:48]} Ke6 {[%emt 0:02:11]} 68. Ke4 {[%emt 0:00:07]} Rb6 {[%emt 0:00:43]} 69. f4 {[%emt 0:01:17]} gxf4 {[%emt 0:00:09]} 70. gxf4 {[%emt 0:00:05]} Kd7 {[%emt 0:00:46]} 71. Rd5+ {[%emt 0:00:27]} Kc7 {[%emt 0:00:15]} 72. Kd4 {[%emt 0:00:47]} Re6 {[%emt 0:00:51]} 73. Kc5 {[%emt 0:00:36]} Re1 {[%emt 0:00:56]} 74. b6+ {[%emt 0:00:22]} Kb7 {[%emt 0:00:14]} 75. Rd7+ {[%emt 0:00:04]} Kb8 {[%emt 0:00:35]} 76. Rf7 {[%emt 0:01:44]} Rc1+ {[%emt 0:00:12]} 77. Kd6 {[%emt 0:00:16]} Rb1 {[%emt 0:00:20]} 78. Rxf6 {[%emt 0:00:36]} Rxb6+ {[%emt 0:00:07]} 79. Ke7 {[%emt 0:00:03]} Rb7+ {[%emt 0:00:07]} 80. Kf8 {[%emt 0:00:07]} Rb4 {[%emt 0:00:09]} 81. g5 {[%emt 0:00:22]} 1-0

[Event "Satka Autumn 2019"]
[Site "Satka"]
[Date "2019.09.23"]
[Round "5.11"]
[White "Filippova, Darya"]
[Black "Mar, Karmen"]
[Result "1-0"]
[ECO "A06"]
[WhiteElo "2110"]
[BlackElo "2026"]
[Annotator "NA"]
[PlyCount "105"]
[EventDate "2019.09.19"]
[EventType "swiss"]
[EventCountry "RUS"]
[SourceTitle "playchess.com"]
[Source "ChessBase"]
[SourceQuality "1"]
[TimeControl "5400+30"]

1. Nf3 {[%emt 0:00:00]} d5 {[%emt 0:00:00]} 2. c4 {[%emt 0:00:00]} c6 {[%emt 0:00:00]} 3. g3 {[%emt 0:00:07]} Bg4 {[%emt 0:03:51]} 4. Bg2 {[%emt 0:00:14]} e6 {[%emt 0:03:20]} 5. O-O {[%emt 0:01:55]} Nd7 {[%emt 0:00:59]} 6. cxd5 {[%emt 0:24:00]} exd5 {[%emt 0:04:58]} 7. d4 {[%emt 0:01:19]} Bd6 {[%emt 0:04:40]} 8. Nc3 {[%emt 0:00:45]} Ngf6 {[%emt 0:00:37]} 9. Bg5 {[%emt 0:00:34]} O-O {[%emt 0:10:16]} 10. Bxf6 {[%emt 0:08:26]} Nxf6 {[%emt 0:04:36]} 11. Ne5 {[%emt 0:00:33]} Bf5 {[%emt 0:04:58]} 12. Nd3 {[%emt 0:27:57]} Re8 {[%emt 0:06:06]} 13. Re1 {[%emt 0:01:14]} h5 {[%emt 0:06:22]} 14. Na4 {[%emt 0:02:52]} h4 {[%emt 0:04:30]} 15. Nac5 {[%emt 0:00:58]} Rb8 {[%emt 0:01:53]} 16. e3 {[%emt 0:05:22]} Qc8 {[%emt 0:17:14]} 17. f4 {[%emt 0:02:24]} Bg4 {[%emt 0:04:27]} 18. Qc1 {[%emt 0:02:18]} Bh3 {[%emt 0:06:14]} 19. Ne5 {[%emt 0:01:15]} Bxe5 {[%emt 0:04:03]} 20. dxe5 {[%emt 0:00:38]} Nh5 {[%emt 0:02:44]} 21. Qd1 {[%emt 0:01:41]} Bg4 {[%emt 0:03:00]} 22. Bf3 {[%emt 0:00:09]} Bxf3 {[%emt 0:00:39]} 23. Qxf3 {[%emt 0:00:08]} g6 {[%emt 0:00:45]} 24. g4 {[%emt 0:00:34]} Ng7 {[%emt 0:00:18]} 25. Rad1 {[%emt 0:01:10]} Qc7 {[%emt 0:02:28]} 26. e4 {[%emt 0:00:34]} Rbd8 {[%emt 0:01:47]} 27. exd5 {[%emt 0:00:26]} Qb6 {[%emt 0:00:21]} 28. Qf2 {[%emt 0:01:26]} cxd5 {[%emt 0:00:13]} 29. f5 {[%emt 0:01:58]} gxf5 {[%emt 0:01:06]} 30. gxf5 {[%emt 0:00:14]} Nxf5 {[%emt 0:00:45]} 31. Kh1 {[%emt 0:02:42]} Ng7 {[%emt 0:01:02]} 32. Rg1 {[%emt 0:01:12]} Rxe5 {[%emt 0:00:57]} 33. Qxh4 {[%emt 0:00:49]} d4 {[%emt 0:00:39]} 34. Rxg7+ {[%emt 0:00:44]} Kxg7 {[%emt 0:00:22]} 35. Rg1+ {[%emt 0:00:10]} Kf8 {[%emt 0:00:25]} 36. Qh8+ {[%emt 0:00:49]} Ke7 {[%emt 0:00:01]} 37. Qxe5+ {[%emt 0:00:13]} Kf8 {[%emt 0:00:19]} 38. Nd7+ {[%emt 0:02:36]} Rxd7 {[%emt 0:00:13]} 39. Qh8+ {[%emt 0:00:06]} Ke7 {[%emt 0:00:04]} 40. Re1+ {[%emt 0:00:00]} Qe6 {[%emt 0:00:00]} 41. Rxe6+ {[%emt 0:00:00]} fxe6 {[%emt 0:00:00]} 42. Qh7+ {[%emt 0:00:00]} Kd6 {[%emt 0:00:00]} 43. Qd3 {[%emt 0:00:00]} e5 {[%emt 0:00:00]} 44. Kg2 {[%emt 0:00:00]} Kd5 {[%emt 0:00:00]} 45. Kf3 {[%emt 0:00:00]} Rf7+ {[%emt 0:00:00]} 46. Ke2 {[%emt 0:00:00]} Ke6 {[%emt 0:00:00]} 47. h4 {[%emt 0:00:00]} Rg7 {[%emt 0:00:00]} 48. Qh3+ {[%emt 0:00:00]} Kd5 {[%emt 0:00:00]} 49. h5 {[%emt 0:00:00]} b5 {[%emt 0:00:00]} 50. h6 {[%emt 0:00:00]} Rh7 {[%emt 0:00:00]} 51. Qh5 {[%emt 0:00:00]} Rc7 {[%emt 0:00:00]} 52. h7 {[%emt 0:00:00]} Rc2+ {[%emt 0:00:00]} 53. Kd1 {[%emt 0:00:00]} 1-0

[Event "Satka Autumn 2019"]
[Site "Satka"]
[Date "2019.09.23"]
[Round "5.12"]
[White "Mirgalina, Anna"]
[Black "Benderac, Ana"]
[Result "0-1"]
[ECO "B06"]
[WhiteElo "1473"]
[BlackElo "2228"]
[Annotator "NA"]
[PlyCount "68"]
[EventDate "2019.09.19"]
[EventType "swiss"]
[EventCountry "RUS"]
[SourceTitle "playchess.com"]
[Source "ChessBase"]
[SourceQuality "1"]
[TimeControl "5400+30"]

1. e4 {[%emt 0:00:00]} g6 {[%emt 0:00:00]} 2. Nf3 {[%emt 0:00:00]} Bg7 {[%emt 0:00:00]} 3. d4 {[%emt 0:00:09]} d5 {[%emt 0:01:09]} 4. e5 {[%emt 0:08:45]} c5 {[%emt 0:00:26]} 5. c3 {[%emt 0:13:35]} Nc6 {[%emt 0:00:20]} 6. Be2 {[%emt 0:03:48]} Bf5 {[%emt 0:02:20]} 7. O-O {[%emt 0:09:50]} Qd7 {[%emt 0:01:08]} 8. Bf4 {[%emt 0:08:33]} c4 {[%emt 0:01:27]} 9. b3 {[%emt 0:02:37]} cxb3 {[%emt 0:01:34]} 10. axb3 {[%emt 0:01:33]} Bxb1 {[%emt 0:00:51]} 11. Qxb1 {[%emt 0:03:53]} e6 {[%emt 0:00:05]} 12. Qd3 {[%emt 0:07:29]} Nge7 {[%emt 0:00:51]} 13. Rfd1 {[%emt 0:00:17]} O-O {[%emt 0:00:24]} 14. h4 {[%emt 0:07:11]} b6 {[%emt 0:00:57]} 15. g4 {[%emt 0:02:55]} Na5 {[%emt 0:00:14]} 16. Rab1 {[%emt 0:01:59]} Rfc8 {[%emt 0:01:14]} 17. Kg2 {[%emt 0:01:23]} Qc7 {[%emt 0:01:30]} 18. Bd2 {[%emt 0:01:25]} h6 {[%emt 0:01:20]} 19. Rh1 {[%emt 0:01:26]} Kf8 {[%emt 0:02:37]} 20. h5 {[%emt 0:01:27]} Ke8 {[%emt 0:00:53]} 21. hxg6 {[%emt 0:00:36]} Nxg6 {[%emt 0:00:05]} 22. g5 {[%emt 0:00:49]} h5 {[%emt 0:01:43]} 23. Rxh5 {[%emt 0:03:11]} Qxc3 {[%emt 0:00:59]} 24. Qxc3 {[%emt 0:00:11]} Rxc3 {[%emt 0:00:04]} 25. Bxc3 {[%emt 0:00:05]} Nf4+ {[%emt 0:00:02]} 26. Kg3 {[%emt 0:02:53]} Nxe2+ {[%emt 0:00:10]} 27. Kh2 {[%emt 0:02:12]} Nxc3 {[%emt 0:00:03]} 28. Rc1 {[%emt 0:00:47]} Nb5 {[%emt 0:02:11]} 29. Rh7 {[%emt 0:03:14]} Kf8 {[%emt 0:01:56]} 30. b4 {[%emt 0:01:51]} Nb3 {[%emt 0:01:06]} 31. Rg1 {[%emt 0:03:49]} Kg8 {[%emt 0:00:37]} 32. Rh4 {[%emt 0:00:22]} N3xd4 {[%emt 0:00:16]} 33. Nxd4 {[%emt 0:00:24]} Nxd4 {[%emt 0:00:52]} 34. Rg3 {[%emt 0:00:47]} Nf5 {[%emt 0:00:12]} 0-1